{"text_format":"1","workbook":"xlsx","n_sheets":3,"sheets":["_com.sap.ip.bi.xl.hiddensheet","data","data_x"],"not_rendered":{"charts":0,"images":0,"macros":0,"external_links":0,"defined_names":7,"comments":0,"pivot_tables":0},"unopened":[],"bounds":{"document_bytes":16777216,"sheet_cells":100000,"rows_first":2000,"rows_last":500,"rows_between":2000,"halvings":0,"cell_chars":16384,"cell_head_chars":4096},"cells_cut":0,"cells_raw":0,"read":"whole","date_system":"1900"}

{"sheet":"_com.sap.ip.bi.xl.hiddensheet","index":0,"n_rows":0,"n_cols":0,"rows_kept":0,"cut":false,"hidden":true,"merged":[]}

{"sheet":"data","index":1,"n_rows":33,"n_cols":16,"rows_kept":33,"cut":false,"hidden":false,"merged":[]}
["ГОД","МЕСЯЦ","НЕДЕЛЯ","ГРУППА","ПОЛУЧАТЕЛЬ МАТЕРИАЛА","ПОЛУЧАТЕЛЬ МАТЕРИАЛА 2","РЕГИОН","РЕГИОН 2","ГОРОД","УЛИЦА","МАТЕРИАЛ","ИЗМЕРЕНИЕ1","ЕДИНИЦА ИЗМЕРЕНИЯ","ДАННЫЕ","Тип клиента","Плательщик"]
["2015","Январь",null,"Свежезаморож./","ООО \"Клиент1\" -","Клиент1","18","Республика Удмуртия","РФ,Удмуртская республика, г.Ижевск,",null,"Продукт1","Брутто-оборот","RUB",9835.7000000000007,{"$f":"VLOOKUP(tab_data[[#This Row],[ПОЛУЧАТЕЛЬ МАТЕРИАЛА]],tab_customer[],2,0)","v":"Customer"},{"$f":"VLOOKUP(tab_data[[#This Row],[ПОЛУЧАТЕЛЬ МАТЕРИАЛА]],tab_customer[],3,0)","v":"Клиент1"}]
["2015","Январь",null,"Свежезаморож./","ООО \"Клиент1\" -","Клиент1","18","Республика Удмуртия","РФ,Удмуртская республика, г.Ижевск,",null,"Продукт1","Нетто-оборот","RUB",8852.2000000000007,{"$f":"VLOOKUP(tab_data[[#This Row],[ПОЛУЧАТЕЛЬ МАТЕРИАЛА]],tab_customer[],2,0)","v":"Customer"},{"$f":"VLOOKUP(tab_data[[#This Row],[ПОЛУЧАТЕЛЬ МАТЕРИАЛА]],tab_customer[],3,0)","v":"Клиент1"}]
["2015","Январь",null,"Свежезаморож./","ООО \"Клиент1\" -","Клиент1","18","Республика Удмуртия","РФ,Удмуртская республика, г.Ижевск,",null,"Продукт1","Кол-во Штука","",70,{"$f":"VLOOKUP(tab_data[[#This Row],[ПОЛУЧАТЕЛЬ МАТЕРИАЛА]],tab_customer[],2,0)","v":"Customer"},{"$f":"VLOOKUP(tab_data[[#This Row],[ПОЛУЧАТЕЛЬ МАТЕРИАЛА]],tab_customer[],3,0)","v":"Клиент1"}]
["2016","Январь",null,"Свежезаморож./","ООО \"Клиент2\" -","Клиент2","62","Рязанская обл.","г.Рязань,",null,"Продукт2","Брутто-оборот","RUB",2950.71,{"$f":"VLOOKUP(tab_data[[#This Row],[ПОЛУЧАТЕЛЬ МАТЕРИАЛА]],tab_customer[],2,0)","v":"Customer"},{"$f":"VLOOKUP(tab_data[[#This Row],[ПОЛУЧАТЕЛЬ МАТЕРИАЛА]],tab_customer[],3,0)","v":"Клиент2"}]
["2016","Январь",null,"Свежезаморож./","ООО \"Клиент2\" -","Клиент2","62","Рязанская обл.","г.Рязань,",null,"Продукт2","Нетто-оборот","RUB",2950.71,{"$f":"VLOOKUP(tab_data[[#This Row],[ПОЛУЧАТЕЛЬ МАТЕРИАЛА]],tab_customer[],2,0)","v":"Customer"},{"$f":"VLOOKUP(tab_data[[#This Row],[ПОЛУЧАТЕЛЬ МАТЕРИАЛА]],tab_customer[],3,0)","v":"Клиент2"}]
["2016","Январь",null,"Свежезаморож./","ООО \"Клиент2\" -","Клиент2","62","Рязанская обл.","г.Рязань,",null,"Продукт2","Кол-во Штука","",21,{"$f":"VLOOKUP(tab_data[[#This Row],[ПОЛУЧАТЕЛЬ МАТЕРИАЛА]],tab_customer[],2,0)","v":"Customer"},{"$f":"VLOOKUP(tab_data[[#This Row],[ПОЛУЧАТЕЛЬ МАТЕРИАЛА]],tab_customer[],3,0)","v":"Клиент2"}]
["2017","Январь",null,"Бакалея./","ООО \"Клиент2\"","Клиент 2","76","Ярославская обл.","Ярославская обл., г. Ярославль,",null,"Продукт3","Брутто-оборот","RUB",1967.14,{"$f":"VLOOKUP(tab_data[[#This Row],[ПОЛУЧАТЕЛЬ МАТЕРИАЛА]],tab_customer[],2,0)","v":"Customer"},{"$f":"VLOOKUP(tab_data[[#This Row],[ПОЛУЧАТЕЛЬ МАТЕРИАЛА]],tab_customer[],3,0)","v":"Клиент2"}]
["2017","Январь",null,"Бакалея./","ООО \"Клиент2\"","Клиент 2","76","Ярославская обл.","Ярославская обл., г. Ярославль,",null,"Продукт3","Нетто-оборот","RUB",1967.14,{"$f":"VLOOKUP(tab_data[[#This Row],[ПОЛУЧАТЕЛЬ МАТЕРИАЛА]],tab_customer[],2,0)","v":"Customer"},{"$f":"VLOOKUP(tab_data[[#This Row],[ПОЛУЧАТЕЛЬ МАТЕРИАЛА]],tab_customer[],3,0)","v":"Клиент2"}]
["2017","Январь",null,"Бакалея./","ООО \"Клиент2\"","Клиент 2","76","Ярославская обл.","Ярославская обл., г. Ярославль,",null,"Продукт3","Кол-во Штука","",14,{"$f":"VLOOKUP(tab_data[[#This Row],[ПОЛУЧАТЕЛЬ МАТЕРИАЛА]],tab_customer[],2,0)","v":"Customer"},{"$f":"VLOOKUP(tab_data[[#This Row],[ПОЛУЧАТЕЛЬ МАТЕРИАЛА]],tab_customer[],3,0)","v":"Клиент2"}]
["2017","Январь",null,"Свежезаморож./","ООО \"Клиент3\" -","Клиент 3","52","Н.-Новгородская обл.","Нижегородская обл., г. Нижний Новго",null,"Продукт1","Брутто-оборот","RUB",983.57,{"$f":"VLOOKUP(tab_data[[#This Row],[ПОЛУЧАТЕЛЬ МАТЕРИАЛА]],tab_customer[],2,0)","v":"Distributors"},{"$f":"VLOOKUP(tab_data[[#This Row],[ПОЛУЧАТЕЛЬ МАТЕРИАЛА]],tab_customer[],3,0)","v":"Клиент3"}]
["2017","Январь",null,"Свежезаморож./","ООО \"Клиент3\" -","Клиент 3","52","Н.-Новгородская обл.","Нижегородская обл., г. Нижний Новго",null,"Продукт1","Нетто-оборот","RUB",983.57,{"$f":"VLOOKUP(tab_data[[#This Row],[ПОЛУЧАТЕЛЬ МАТЕРИАЛА]],tab_customer[],2,0)","v":"Distributors"},{"$f":"VLOOKUP(tab_data[[#This Row],[ПОЛУЧАТЕЛЬ МАТЕРИАЛА]],tab_customer[],3,0)","v":"Клиент3"}]
["2017","Январь",null,"Свежезаморож./","ООО \"Клиент3\" -","Клиент 3","52","Н.-Новгородская обл.","Нижегородская обл., г. Нижний Новго",null,"Продукт1","Кол-во Штука","",7,{"$f":"VLOOKUP(tab_data[[#This Row],[ПОЛУЧАТЕЛЬ МАТЕРИАЛА]],tab_customer[],2,0)","v":"Distributors"},{"$f":"VLOOKUP(tab_data[[#This Row],[ПОЛУЧАТЕЛЬ МАТЕРИАЛА]],tab_customer[],3,0)","v":"Клиент3"}]
["2018","Январь",null,"Бакалея./","ООО \"Клиент3\"","Клиент3","37","Ивановская обл.","г. Иваново,",null,"Продукт4","Брутто-оборот","RUB",983.57,{"$f":"VLOOKUP(tab_data[[#This Row],[ПОЛУЧАТЕЛЬ МАТЕРИАЛА]],tab_customer[],2,0)","v":"Distributors"},{"$f":"VLOOKUP(tab_data[[#This Row],[ПОЛУЧАТЕЛЬ МАТЕРИАЛА]],tab_customer[],3,0)","v":"Клиент3"}]
["2018","Январь",null,"Бакалея./","ООО \"Клиент3\"","Клиент3","37","Ивановская обл.","г. Иваново,",null,"Продукт4","Нетто-оборот","RUB",983.57,{"$f":"VLOOKUP(tab_data[[#This Row],[ПОЛУЧАТЕЛЬ МАТЕРИАЛА]],tab_customer[],2,0)","v":"Distributors"},{"$f":"VLOOKUP(tab_data[[#This Row],[ПОЛУЧАТЕЛЬ МАТЕРИАЛА]],tab_customer[],3,0)","v":"Клиент3"}]
["2018","Январь",null,"Бакалея./","ООО \"Клиент3\"","Клиент3","37","Ивановская обл.","г. Иваново,",null,"Продукт4","Кол-во Штука","",7,{"$f":"VLOOKUP(tab_data[[#This Row],[ПОЛУЧАТЕЛЬ МАТЕРИАЛА]],tab_customer[],2,0)","v":"Distributors"},{"$f":"VLOOKUP(tab_data[[#This Row],[ПОЛУЧАТЕЛЬ МАТЕРИАЛА]],tab_customer[],3,0)","v":"Клиент3"}]
["2018","Январь",null,"Свежезаморож./","ООО \"Клиент3\" -","Клиент 3","16","Республика Татарстан","Респ. Татарстан, Альметьевский р-н,",null,"Продукт4","Брутто-оборот","RUB",1086.8900000000001,{"$f":"VLOOKUP(tab_data[[#This Row],[ПОЛУЧАТЕЛЬ МАТЕРИАЛА]],tab_customer[],2,0)","v":"Distributors"},{"$f":"VLOOKUP(tab_data[[#This Row],[ПОЛУЧАТЕЛЬ МАТЕРИАЛА]],tab_customer[],3,0)","v":"Клиент3"}]
["2018","Январь",null,"Свежезаморож./","ООО \"Клиент3\" -","Клиент 3","16","Республика Татарстан","Респ. Татарстан, Альметьевский р-н,",null,"Продукт4","Нетто-оборот","RUB",1086.8900000000001,{"$f":"VLOOKUP(tab_data[[#This Row],[ПОЛУЧАТЕЛЬ МАТЕРИАЛА]],tab_customer[],2,0)","v":"Distributors"},{"$f":"VLOOKUP(tab_data[[#This Row],[ПОЛУЧАТЕЛЬ МАТЕРИАЛА]],tab_customer[],3,0)","v":"Клиент3"}]
["2018","Январь",null,"Свежезаморож./","ООО \"Клиент3\" -","Клиент 3","16","Республика Татарстан","Респ. Татарстан, Альметьевский р-н,",null,"Продукт4","Кол-во Штука","",7,{"$f":"VLOOKUP(tab_data[[#This Row],[ПОЛУЧАТЕЛЬ МАТЕРИАЛА]],tab_customer[],2,0)","v":"Distributors"},{"$f":"VLOOKUP(tab_data[[#This Row],[ПОЛУЧАТЕЛЬ МАТЕРИАЛА]],tab_customer[],3,0)","v":"Клиент3"}]
["2019","Январь",null,"Свежезаморож./","ООО \"Клиент3\"","Клиент3","37","Ивановская обл.","г. Иваново,",null,"Продукт5","Брутто-оборот","RUB",1086.8900000000001,{"$f":"VLOOKUP(tab_data[[#This Row],[ПОЛУЧАТЕЛЬ МАТЕРИАЛА]],tab_customer[],2,0)","v":"Distributors"},{"$f":"VLOOKUP(tab_data[[#This Row],[ПОЛУЧАТЕЛЬ МАТЕРИАЛА]],tab_customer[],3,0)","v":"Клиент3"}]
["2019","Январь",null,"Свежезаморож./","ООО \"Клиент3\"","Клиент3","37","Ивановская обл.","г. Иваново,",null,"Продукт5","Нетто-оборот","RUB",1086.8900000000001,{"$f":"VLOOKUP(tab_data[[#This Row],[ПОЛУЧАТЕЛЬ МАТЕРИАЛА]],tab_customer[],2,0)","v":"Distributors"},{"$f":"VLOOKUP(tab_data[[#This Row],[ПОЛУЧАТЕЛЬ МАТЕРИАЛА]],tab_customer[],3,0)","v":"Клиент3"}]
["2019","Январь",null,"Свежезаморож./","ООО \"Клиент3\"","Клиент3","37","Ивановская обл.","г. Иваново,",null,"Продукт5","Кол-во Штука","",7,{"$f":"VLOOKUP(tab_data[[#This Row],[ПОЛУЧАТЕЛЬ МАТЕРИАЛА]],tab_customer[],2,0)","v":"Distributors"},{"$f":"VLOOKUP(tab_data[[#This Row],[ПОЛУЧАТЕЛЬ МАТЕРИАЛА]],tab_customer[],3,0)","v":"Клиент3"}]
["2019","Январь",null,"Свежезаморож./","ООО \"Клиент4","Клиент4","52","Н.-Новгородская обл.","г.Нижний Новгород,",null,"Продукт2","Брутто-оборот","RUB",1086.8900000000001,{"$f":"VLOOKUP(tab_data[[#This Row],[ПОЛУЧАТЕЛЬ МАТЕРИАЛА]],tab_customer[],2,0)","v":"Customer"},{"$f":"VLOOKUP(tab_data[[#This Row],[ПОЛУЧАТЕЛЬ МАТЕРИАЛА]],tab_customer[],3,0)","v":"Клиент4"}]
["2019","Январь",null,"Свежезаморож./","ООО \"Клиент4","Клиент4","52","Н.-Новгородская обл.","г.Нижний Новгород,",null,"Продукт2","Нетто-оборот","RUB",1086.8900000000001,{"$f":"VLOOKUP(tab_data[[#This Row],[ПОЛУЧАТЕЛЬ МАТЕРИАЛА]],tab_customer[],2,0)","v":"Customer"},{"$f":"VLOOKUP(tab_data[[#This Row],[ПОЛУЧАТЕЛЬ МАТЕРИАЛА]],tab_customer[],3,0)","v":"Клиент4"}]
["2019","Январь",null,"Свежезаморож./","ООО \"Клиент4","Клиент4","52","Н.-Новгородская обл.","г.Нижний Новгород,",null,"Продукт2","Кол-во Штука","",7,{"$f":"VLOOKUP(tab_data[[#This Row],[ПОЛУЧАТЕЛЬ МАТЕРИАЛА]],tab_customer[],2,0)","v":"Customer"},{"$f":"VLOOKUP(tab_data[[#This Row],[ПОЛУЧАТЕЛЬ МАТЕРИАЛА]],tab_customer[],3,0)","v":"Клиент4"}]
[]
[]
[null,"В реальной таблице более 100К строк и размер файла уже вырос более 15Mb, есть ещё сводные для анализа…"]
[null,"В данном примере решение через ВПР"]
[]
[null,"Необходимо в 15 и 16 столбцы подтянуть данные из таблицы на листе \"data_x\""]
[]
[null,"СПАСИБО!"]

{"sheet":"data_x","index":2,"n_rows":7,"n_cols":3,"rows_kept":7,"cut":false,"hidden":false,"merged":[]}
["Столбец \"Получатель материала\"","Столбец \"Тип клиента\"","Столбец \"Плательщик\""]
["ООО \"Клиент1\" -","Customer","Клиент1"]
["ООО \"Клиент2\" -","Customer","Клиент2"]
["ООО \"Клиент2\"","Customer","Клиент2"]
["ООО \"Клиент3\" -","Distributors","Клиент3"]
["ООО \"Клиент3\"","Distributors","Клиент3"]
["ООО \"Клиент4","Customer","Клиент4"]